bitfinex/quotes_BTCUSD_20240901
["timestamp","ask_amount","ask_price","bid_price","bid_amount"]
[1725204491157,4.83504835,58120.0,58119.0,0.0008998]
[1725204491427,4.98199072,58120.0,58119.0,0.0008998]
[1725204491984,4.98399072,58120.0,58119.0,0.0008998]
[1725204492400,4.85307619,58120.0,58119.0,0.0008998]
[1725204492609,4.86507619,58120.0,58119.0,0.0018998]
[1725204493172,4.87807619,58120.0,58119.0,0.0028998]
[1725204493603,4.87807619,58120.0,58119.0,0.0038998]
[1725204493804,4.89107619,58120.0,58119.0,0.0038998]
[1725204494217,4.87707619,58120.0,58119.0,0.0028998]
[1725204494439,4.89107619,58120.0,58119.0,0.0028998]
[1725204497317,3.95087949,58120.0,58119.0,0.0028998]
[1725204499217,4.01992549,58120.0,58119.0,0.0028998]
[1725204499639,4.1487596,58120.0,58119.0,0.0028998]
[1725204500407,3.46625885,58120.0,58119.0,0.0028998]
[1725204500590,1.70654484,58120.0,58119.0,0.0671998]
[1725204500794,1.80960574,58120.0,58119.0,0.0671998]
[1725204501221,1.99200674,58120.0,58119.0,0.0028998]
[1725204501433,2.07427745,58120.0,58119.0,0.0028998]
[1725204501638,1.98749814,58120.0,58119.0,0.0028998]
[1725204501844,2.52743028,58120.0,58119.0,0.0028998]
[1725204502049,2.48771884,58120.0,58119.0,0.0028998]
[1725204502717,2.38188809,58120.0,58119.0,0.0028998]
[1725204503745,2.03777309,58120.0,58119.0,0.0028998]
[1725204503994,1.99421655,58120.0,58119.0,0.0028998]
[1725204504204,2.33833155,58120.0,58119.0,0.0028998]
[1725204504409,2.38188809,58120.0,58119.0,0.0028998]
[1725204506378,2.46714176,58120.0,58119.0,0.0028998]
[1725204507459,1.91194584,58120.0,58119.0,0.0028998]
[1725204511556,1.72954484,58120.0,58119.0,0.0028998]
[1725204513216,2.79500784,58120.0,58119.0,0.0028998]
[1725204514728,2.76621784,58120.0,58119.0,0.0028998]
[1725204515011,2.63135484,58120.0,58119.0,0.0028998]
[1725204515249,2.79990648,58120.0,58119.0,0.0028998]
[1725204517432,2.90292391,58120.0,58119.0,0.0028998]
[1725204518054,2.99873117,58120.0,58119.0,0.0028998]
[1725204518254,2.89571374,58120.0,58119.0,0.0028998]
[1725204518682,2.97979432,58120.0,58119.0,0.0028998]
[1725204518892,3.28082874,58120.0,58119.0,0.0028998]
[1725204519106,3.2071099,58120.0,58119.0,0.0028998]
[1725204519954,3.27101162,58120.0,58119.0,0.0028998]
[1725204520336,3.00061546,58120.0,58119.0,0.0028998]
[1725204520554,3.12941878,58120.0,58119.0,0.0028998]
[1725204520753,3.17295988,58120.0,58119.0,0.0028998]
[1725204521054,3.12941878,58120.0,58119.0,0.0028998]
[1725204521338,3.12941878,58120.0,58119.0,0.00280688]
[1725204521339,3.10405026,58120.0,58119.0,0.00280688]
[1725204521543,3.11951209,58120.0,58119.0,0.00280688]
[1725204521749,3.46362709,58120.0,58119.0,0.00280688]
[1725204522365,3.46444509,58120.0,58119.0,0.00280688]
[1725204523441,3.47244509,58120.0,58119.0,0.00280688]
[1725204523647,3.48790692,58120.0,58119.0,0.00280688]
[1725204523873,3.6424709,58120.0,58119.0,0.00280688]
[1725204524090,1.933924,58111.0,58110.0,0.0008998]
[1725204524273,4.53005298,58111.0,58110.0,0.0008998]
[1725204524538,4.45395198,58111.0,58110.0,0.0008998]
[1725204524998,4.25845531,58111.0,58110.0,0.0008998]
[1725204525713,4.27345531,58111.0,58110.0,0.0008998]
[1725204525948,4.44200695,58111.0,58110.0,0.0008998]
[1725204526988,4.41389595,58111.0,58110.0,0.0008998]
[1725204527197,4.42789595,58111.0,58110.0,0.0008998]
[1725204527407,4.38689595,58111.0,58110.0,0.0008998]
[1725204527586,4.37889595,58111.0,58110.0,0.0008998]
[1725204527970,4.38526693,58111.0,58110.0,0.0008998]
[1725204529041,4.39926693,58111.0,58110.0,0.0008998]
[1725204529401,4.55397241,58111.0,58110.0,0.0008998]
[1725204530042,4.55897241,58111.0,58110.0,0.0008998]
[1725204530487,4.40426693,58111.0,58110.0,0.0008998]
[1725204530947,4.84698693,58111.0,58110.0,0.0008998]
[1725204531198,4.84698693,58111.0,58084.0,0.4755]
[1725204531199,1.204857,58098.0,58097.0,0.0617]
[1725204531406,1.46781429,58098.0,58097.0,0.0617]
[1725204531604,3.24015898,58098.0,58097.0,0.0617]
[1725204531862,3.26315898,58098.0,58097.0,0.0617]
[1725204532081,3.2901741,58098.0,58097.0,0.0617]
[1725204532294,3.45872574,58098.0,58097.0,0.0617]
[1725204532691,3.29645674,58098.0,58097.0,0.0617]
[1725204533764,2.85649074,58098.0,58097.0,0.0625998]
[1725204534069,2.46662376,58098.0,58097.0,0.0625998]
[1725204535414,1.33187212,58098.0,58097.0,0.1391998]
[1725204535627,1.43509397,58098.0,58097.0,0.1391998]
[1725204535849,1.304857,58098.0,58097.0,0.1391998]
[1725204536063,1.31131595,58098.0,58097.0,0.1391998]
[1725204536905,1.35560978,58098.0,58097.0,0.1391998]
[1725204538394,1.00490583,58098.0,58097.0,0.1391998]
[1725204538612,0.98762547,58098.0,58097.0,0.1391998]
[1725204539070,0.98762547,58098.0,58093.0,0.066]
[1725204539071,1.204941,58094.0,58093.0,0.066]
[1725204539277,3.74456714,58094.0,58093.0,0.066]
[1725204539490,3.67555764,58094.0,58093.0,0.066]
[1725204539703,3.79855764,58094.0,58093.0,0.066]
[1725204539912,2.20283964,58094.0,58093.0,0.066]
[1725204540145,2.16053764,58094.0,58093.0,0.066]
[1725204540354,2.16253764,58094.0,58093.0,0.066]
[1725204540792,2.50680664,58094.0,58093.0,0.066]
[1725204541040,1.970986,58094.0,58093.0,0.066]
[1725204541248,1.4325,58094.0,58093.0,0.066]
[1725204541706,0.516492,58084.0,58083.0,0.002]
[1725204541921,0.616492,58084.0,58083.0,0.0794]
[1725204542131,0.616492,58084.0,58083.0,0.1429]
[1725204542132,0.7025718,58084.0,58083.0,0.1429]
[1725204542989,1.0488998,58084.0,58083.0,0.1429]
[1725204544016,1.0488998,58084.0,58083.0,0.1409]
[1725204544439,1.3932278,58084.0,58083.0,0.1409]
[1725204544643,1.42024624,58084.0,58083.0,0.1409]
[1725204544974,1.47794264,58084.0,58083.0,0.1409]
[1725204546016,1.42024624,58084.0,58083.0,0.1409]
[1725204546692,1.4267116,58084.0,58083.0,0.1409]
[1725204547812,1.7710396,58084.0,58083.0,0.1409]
[1725204548014,1.484408,58084.0,58083.0,0.1409]
[1725204548338,0.27926,58084.0,58079.0,0.0794]
[1725204548538,0.172176,58080.0,58079.0,0.0794]
[1725204548819,0.172176,58080.0,58076.0,0.0794]
[1725204548820,0.68874,58077.0,58076.0,0.0794]
[1725204549019,0.960925,58077.0,58076.0,0.0794]
[1725204549238,1.305295,58077.0,58076.0,0.0794]
[1725204549396,1.205316,58076.0,58075.0,0.0615]
[1725204549595,1.328316,58076.0,58075.0,0.0615]
[1725204549805,2.279432,58076.0,58075.0,0.0615]
[1725204550018,1.549719,58075.0,58074.0,5e-07]
[1725204550221,1.87596704,58075.0,58074.0,5e-07]
[1725204550421,1.89896704,58075.0,58074.0,5e-07]
[1725204551935,2.24334904,58075.0,58074.0,5e-07]
[1725204552144,1.41528858,58075.0,58074.0,5e-07]
[1725204552357,1.58747958,58075.0,58074.0,5e-07]
[1725204553009,1.64517598,58075.0,58074.0,5e-07]
[1725204553218,1.65017598,58075.0,58074.0,5e-07]
[1725204553437,1.65517598,58075.0,58074.0,5e-07]
[1725204553641,1.82372762,58075.0,58074.0,5e-07]
[1725204553859,1.8308319,58075.0,58074.0,5e-07]
[1725204554070,1.89704655,58075.0,58074.0,5e-07]
[1725204555365,1.91507449,58075.0,58074.0,5e-07]
[1725204555571,1.86878358,58075.0,58074.0,5e-07]
[1725204556649,1.87378358,58075.0,58074.0,5e-07]
[1725204556858,1.88380544,58075.0,58074.0,5e-07]
[1725204557073,1.92507449,58075.0,58074.0,5e-07]
[1725204557306,2.26945649,58075.0,58074.0,5e-07]
[1725204557573,1.92507449,58075.0,58074.0,5e-07]
[1725204558008,1.92807449,58075.0,58074.0,5e-07]
[1725204558423,1.88178358,58075.0,58074.0,5e-07]
[1725204558665,1.88178358,58075.0,58053.0,0.002]
[1725204558666,0.0809,58051.0,58038.0,0.072098]
[1725204558885,0.0809,58051.0,58042.0,0.50540786]
[1725204558886,0.172286,58043.0,58042.0,0.50540786]
[1725204559072,0.516892,58039.0,58038.0,0.072098]
[1725204559321,1.306082,58039.0,58038.0,0.072098]
[1725204559535,1.93509236,58039.0,58038.0,0.072098]
[1725204560388,2.00678876,58039.0,58038.0,0.072098]
[1725204560607,1.95958576,58039.0,58038.0,0.072098]
[1725204560824,1.00252836,58039.0,58038.0,0.072098]
[1725204561038,1.00252836,58039.0,58038.0,0.154198]
[1725204561039,1.1167812,58039.0,58038.0,0.154198]
[1725204561687,1.3041042,58039.0,58038.0,0.154198]
[1725204562339,1.24906284,58039.0,58038.0,0.154198]
[1725204562570,1.26306284,58039.0,58038.0,0.154198]
[1725204562812,1.19012484,58039.0,58038.0,0.154198]
[1725204563040,1.52071984,58039.0,58038.0,0.154198]
[1725204563459,1.52771984,58039.0,58038.0,0.154198]
[1725204563920,1.52871984,58039.0,58038.0,0.154198]
[1725204564158,1.53571984,58039.0,58038.0,0.154198]
[1725204565706,1.58576047,58039.0,58038.0,0.154198]
[1725204565924,1.57876047,58039.0,58038.0,0.154198]
[1725204566353,1.36212263,58039.0,58038.0,0.154198]
[1725204566606,1.48251563,58039.0,58038.0,0.154198]
[1725204568119,1.47450463,58039.0,58038.0,0.154198]
[1725204568586,1.50432263,58039.0,58038.0,0.154198]
[1725204569271,1.36212263,58039.0,58038.0,0.154198]
[1725204569475,1.49833489,58039.0,58038.0,0.154198]
[1725204571443,2.06831489,58039.0,58038.0,0.154198]
[1725204571736,2.09131489,58039.0,58038.0,0.072098]
[1725204571975,2.09131489,58039.0,58038.0,0.008998]
[1725204572224,2.02834426,58039.0,58038.0,0.008998]
[1725204572686,2.00634426,58039.0,58038.0,0.008998]
[1725204572925,1.99934426,58039.0,58038.0,0.008998]
[1725204573165,2.08504066,58039.0,58038.0,0.008998]
[1725204573893,2.09904066,58039.0,58038.0,0.008998]
[1725204574828,2.10689044,58039.0,58038.0,0.008998]
[1725204575059,2.10689044,58039.0,58031.0,0.0004]
[1725204575060,1.206229,58032.0,58031.0,0.0004]
[1725204575731,1.306229,58032.0,58031.0,0.0004]
[1725204576148,1.306229,58032.0,58031.0,0.1441]
[1725204576848,1.33327288,58032.0,58031.0,0.1441]
[1725204577059,1.34227288,58032.0,58031.0,0.1441]
[1725204577270,1.48450017,58032.0,58031.0,0.1441]
[1725204577472,1.58628017,58032.0,58031.0,0.1441]
[1725204577684,1.57828017,58032.0,58031.0,0.1441]
[1725204577898,1.47650017,58032.0,58031.0,0.1441]
[1725204578130,1.48450017,58032.0,58031.0,0.1441]
[1725204578344,1.62366217,58032.0,58031.0,0.1441]
[1725204579185,1.48450017,58032.0,58031.0,0.1441]
[1725204580238,1.66138117,58032.0,58031.0,0.1441]
[1725204580731,1.62318117,58032.0,58031.0,0.1441]
[1725204581798,1.48450017,58032.0,58031.0,0.1441]
[1725204582035,1.35027288,58032.0,58031.0,0.1441]
[1725204582243,0.633955,58032.0,58031.0,0.1441]
[1725204582453,0.289318,58032.0,58031.0,0.1441]
[1725204583026,0.281318,58032.0,58031.0,0.1441]
[1725204583450,0.3753748,58032.0,58031.0,0.1441]
[1725204583850,0.3823748,58032.0,58031.0,0.1441]
[1725204584261,0.7270118,58032.0,58031.0,0.1441]
[1725204585587,0.48102688,58032.0,58031.0,0.1441]
[1725204585787,0.185318,58032.0,58031.0,0.1441]
[1725204586229,0.185318,58032.0,58031.0,0.1450009]
[1725204587513,0.21235994,58032.0,58031.0,0.1450009]
[1725204587754,0.31235994,58032.0,58031.0,0.1450009]
[1725204588549,0.41252103,58032.0,58031.0,0.1450009]
[1725204588763,0.31235994,58032.0,58031.0,0.1450009]
[1725204590672,0.04831534,58032.0,58031.0,0.1450009]
[1725204590901,0.344636,58033.0,58031.0,0.1450009]
[1725204591572,0.172318,58032.0,58031.0,0.1450009]
[1725204592049,0.516955,58032.0,58031.0,0.1450009]
[1725204592314,0.603112,58032.0,58031.0,0.1450009]
[1725204592551,0.603112,58032.0,58031.0,0.0639009]
[1725204592753,0.703112,58032.0,58031.0,0.0639009]
[1725204593164,1.399386,58032.0,58031.0,0.0639009]
[1725204593805,1.399386,58032.0,58031.0,0.0023009]
[1725204594232,1.399386,58032.0,58031.0,0.0013009]
[1725204594658,1.404386,58032.0,58031.0,0.0013009]
[1725204596216,1.77625434,58032.0,58031.0,0.0013009]
[1725204596890,1.58208277,58032.0,58031.0,0.0013009]
[1725204597124,1.75440077,58032.0,58031.0,0.0013009]
[1725204598747,1.75521977,58032.0,58031.0,0.0013009]
[1725204599214,1.78226492,58032.0,58031.0,0.0013009]
[1725204599683,2.14990192,58032.0,58031.0,0.0013009]
[1725204601040,2.20759832,58032.0,58031.0,0.0013009]
[1725204601492,2.21259832,58032.0,58031.0,0.0013009]
[1725204601922,2.25359832,58032.0,58031.0,0.0013009]
[1725204603128,2.19590192,58032.0,58031.0,0.0013009]
[1725204603383,1.98135028,58032.0,58031.0,0.0013009]
[1725204603614,1.78604828,58032.0,58031.0,0.0013009]
[1725204604337,1.44141128,58032.0,58031.0,0.0013009]
[1725204604569,1.31388828,58032.0,58031.0,0.1421009]
[1725204604801,1.93779513,58032.0,58031.0,0.1421009]
[1725204605045,0.92099334,58032.0,58031.0,0.1421009]
[1725204605267,0.012819,58032.0,58031.0,0.1441009]
[1725204605752,0.874411,58032.0,58031.0,0.1421009]
[1725204606189,0.869411,58032.0,58031.0,0.1421009]
[1725204606635,0.869411,58032.0,58031.0,0.1431009]
[1725204606636,0.968411,58032.0,58031.0,0.1431009]
[1725204606853,1.218367,58032.0,58031.0,0.1431009]
[1725204607078,1.29696583,58032.0,58031.0,0.1421009]
[1725204607293,1.08835983,58032.0,58031.0,0.1421009]
[1725204607505,1.09635983,58032.0,58031.0,0.1421009]
[1725204607726,0.90572883,58032.0,58031.0,0.1421009]
[1725204607939,0.628774,58032.0,58031.0,0.1421009]
[1725204608148,0.65581633,58032.0,58031.0,0.1421009]
[1725204608602,0.31117933,58032.0,58031.0,0.1421009]
[1725204608819,0.31117933,58032.0,58031.0,0.1441009]
[1725204608820,0.13886133,58032.0,58031.0,0.1441009]
[1725204609462,0.13486133,58032.0,58031.0,0.1441009]
[1725204609900,0.12786133,58032.0,58031.0,0.1441009]
[1725204610182,0.12786133,58032.0,58031.0,0.1451009]
[1725204610402,0.03186133,58032.0,58031.0,0.1451009]
[1725204610616,0.03186133,58032.0,58031.0,0.1461009]
[1725204610840,0.03186133,58032.0,58031.0,0.3184219]
[1725204611071,0.03186133,58032.0,58031.0,0.3174219]
[1725204611290,0.03186133,58032.0,58031.0,0.1471009]
[1725204611499,0.02786133,58032.0,58031.0,0.1461009]
[1725204611719,0.02786133,58032.0,58031.0,0.3184219]
[1725204611946,0.02786133,58032.0,58031.0,0.1461009]
[1725204612165,0.000819,58032.0,58031.0,0.1461009]
[1725204612385,0.000819,58032.0,58031.0,0.1481009]
[1725204612810,0.000819,58032.0,58031.0,0.1461009]
[1725204613021,0.000819,58032.0,58031.0,0.1511009]
[1725204613230,0.000819,58032.0,58031.0,0.1541009]
[1725204615323,0.000819,58032.0,58031.0,0.3264219]
[1725204615556,0.02785978,58032.0,58031.0,0.3264219]
[1725204616004,0.02785978,58032.0,58031.0,0.1541009]
[1725204616235,0.90223776,58032.0,58031.0,0.1541009]
[1725204616915,1.00223776,58032.0,58031.0,0.1541009]
[1725204617127,1.00223776,58032.0,58031.0,0.1511009]
[1725204617546,1.00423776,58032.0,58031.0,0.1511009]
[1725204617834,0.12985978,58032.0,58031.0,0.1511009]
[1725204618066,0.02985978,58032.0,58031.0,0.1441009]
[1725204618286,0.12985978,58032.0,58031.0,0.1441009]
[1725204618750,0.12785978,58032.0,58031.0,0.1441009]
[1725204619360,0.03085978,58032.0,58031.0,0.1441009]
[1725204619578,0.03085978,58032.0,58031.0,0.3164219]
[1725204620228,0.03085978,58032.0,58031.0,0.1441009]
[1725204620863,0.03085978,58032.0,58031.0,0.3164219]
[1725204621190,0.03085978,58032.0,58031.0,0.47813088]
[1725204621401,0.03085978,58032.0,58031.0,0.82277388]
[1725204621634,0.03085978,58032.0,58031.0,1.28215947]
[1725204621853,0.03085978,58032.0,58031.0,1.51205988]
[1725204621854,0.003819,58032.0,58031.0,1.51205988]
[1725204622475,0.001819,58032.0,58031.0,1.51205988]
[1725204622621,0.000819,58032.0,58031.0,1.51205988]
[1725204622842,0.000819,58032.0,58031.0,1.52005988]
[1725204623089,0.000819,58032.0,58031.0,1.51505988]
[1725204623492,0.001819,58032.0,58031.0,1.52005988]
[1725204623813,0.001819,58032.0,58031.0,1.51705988]
[1725204624176,0.001819,58032.0,58031.0,1.51805988]
[1725204624587,0.002819,58032.0,58031.0,1.52305988]
[1725204625217,0.002819,58032.0,58031.0,1.67586587]
[1725204625680,0.001819,58032.0,58031.0,1.66986587]
[1725204625893,0.001819,58032.0,58031.0,1.67586587]
[1725204625894,0.002819,58032.0,58031.0,1.67586587]
[1725204626169,0.1,58047.0,58045.0,0.1461]
[1725204626363,0.1,58047.0,58044.0,0.172282]
[1725204626364,0.1,58047.0,58046.0,0.1481]
[1725204626813,0.1,58052.0,58048.0,0.0629]
[1725204627459,0.172268,58049.0,58048.0,0.0629]
[1725204627676,0.272268,58049.0,58048.0,0.0629]
[1725204628055,0.616804,58049.0,58048.0,0.0629]
[1725204628303,0.616804,58049.0,58043.0,0.0629]
[1725204628304,0.59906556,58049.0,58043.0,0.0629]
[1725204628505,0.59906556,58049.0,58031.0,0.0013009]
[1725204628506,0.516919,58036.0,58035.0,0.002]
[1725204628707,0.516946,58033.0,58032.0,0.002]
[1725204629113,0.172315,58033.0,58032.0,0.002]
[1725204629355,0.172315,58033.0,58031.0,0.0642009]
[1725204629356,0.172306,58037.0,58036.0,0.002]
[1725204629588,0.172292,58041.0,58040.0,0.0649]
[1725204629780,0.172292,58041.0,58040.0,0.0629]
[1725204630079,0.723645,58041.0,58040.0,0.0629]
[1725204630223,1.068229,58041.0,58040.0,0.0649]
[1725204630436,0.616876,58041.0,58040.0,0.0649]
[1725204630803,0.272292,58041.0,58040.0,0.0649]
[1725204630956,0.29933014,58041.0,58040.0,0.0649]
[1725204631316,0.29933014,58041.0,58040.0,0.30780898]
[1725204631317,0.02703814,58041.0,58040.0,0.30780898]
[1725204631517,0.34453,58050.0,58046.0,0.002]
[1725204631518,0.172272,58048.0,58046.0,0.002]
[1725204631727,0.1,58049.0,58046.0,0.002]
[1725204631941,0.172272,58048.0,58046.0,0.002]
[1725204632142,0.1,58047.0,58046.0,0.002]
[1725204632358,0.172289,58042.0,58041.0,0.1429]
[1725204632568,0.516867,58042.0,58041.0,0.1409]
[1725204633227,0.861445,58042.0,58041.0,0.1409]
[1725204633436,0.516867,58042.0,58041.0,0.1409]
[1725204635348,0.9131317,58042.0,58041.0,0.1429]
[1725204635560,0.516867,58042.0,58041.0,0.1429]
[1725204635973,0.54390352,58042.0,58041.0,0.1429]
[1725204637712,0.88848152,58042.0,58041.0,0.1429]
[1725204637964,0.88848152,58042.0,58041.0,0.0684]
[1725204638205,0.97732967,58042.0,58041.0,0.002]
[1725204639920,1.32190767,58042.0,58041.0,0.002]
[1725204640138,0.97732967,58042.0,58041.0,0.002]
[1725204640369,1.23305952,58042.0,58041.0,0.002]
[1725204640843,1.33305952,58042.0,58041.0,0.002]
[1725204641518,0.98848152,58042.0,58041.0,0.002]
[1725204641729,0.29932552,58042.0,58041.0,0.1469]
[1725204641948,0.616867,58042.0,58041.0,0.1469]
[1725204643278,1.4021667,58042.0,58041.0,0.002]
[1725204644573,1.4029857,58042.0,58041.0,0.004]
[1725204645169,1.43002488,58042.0,58041.0,0.002]
[1725204646663,1.43002488,58042.0,58041.0,0.004]
[1725204646664,1.33388118,58042.0,58041.0,0.004]
[1725204648166,1.306842,58042.0,58041.0,0.004]
[1725204649958,1.306842,58042.0,58041.0,0.0682]
[1725204650626,0.273108,58042.0,58041.0,0.1484]
[1725204651071,1.0240316,58042.0,58041.0,0.1484]
[1725204651301,0.98930088,58042.0,58041.0,0.1464]
[1725204651506,0.98930088,58042.0,58041.0,0.1484]
[1725204652115,0.87694376,58042.0,58041.0,0.1484]
[1725204653137,0.53236576,58042.0,58041.0,0.1484]
[1725204654480,1.30921504,58042.0,58041.0,0.002]
[1725204654704,0.87694376,58042.0,58041.0,0.002]
[1725204654994,0.87694376,58042.0,58041.0,0.004]
[1725204654995,0.97694376,58042.0,58041.0,0.004]
[1725204655207,0.94990688,58042.0,58041.0,0.004]
[1725204657373,1.29448488,58042.0,58041.0,0.002]
[1725204657826,1.86294364,58042.0,58041.0,0.002]
[1725204658054,3.99673902,58042.0,58041.0,0.002]
[1725204658283,4.00473902,58042.0,58041.0,0.002]
[1725204658499,4.0317822,58042.0,58041.0,0.002]
[1725204658964,3.9749308,58042.0,58041.0,0.002]
[1725204659183,3.9749308,58042.0,58040.0,0.0009009]
[1725204659184,1.563628,58041.0,58040.0,0.0009009]
[1725204659393,4.42028693,58041.0,58040.0,0.0009009]
[1725204659838,4.29159964,58041.0,58040.0,0.0009009]
[1725204660063,4.28659964,58041.0,58040.0,0.0009009]
[1725204660267,4.29159964,58041.0,58040.0,0.0009009]
[1725204660718,2.280195,58041.0,58040.0,0.0009009]
[1725204660936,0.97046,58041.0,58040.0,0.0009009]
[1725204661674,0.97946,58041.0,58040.0,0.0019009]
[1725204665497,1.00649933,58041.0,58040.0,0.0019009]
[1725204666177,1.68233973,58041.0,58040.0,0.0019009]
[1725204666385,1.28090433,58041.0,58040.0,0.0019009]
[1725204666597,1.62548833,58041.0,58040.0,0.0019009]
[1725204666807,1.28090433,58041.0,58040.0,0.0019009]
[1725204667011,1.43102297,58041.0,58040.0,0.0019009]
[1725204667428,1.77560697,58041.0,58040.0,0.0019009]
[1725204668332,1.25873097,58041.0,58040.0,0.0019009]
[1725204668548,1.43102297,58041.0,58040.0,0.0019009]
[1725204668952,1.77560697,58041.0,58040.0,0.0019009]
[1725204669446,1.74856764,58041.0,58040.0,0.0019009]
[1725204670293,2.69014462,58041.0,58040.0,0.0019009]
[1725204670475,2.52202402,58041.0,58040.0,0.0019009]
[1725204670740,5.14024402,58041.0,58040.0,9e-07]
[1725204670956,2.70382402,58041.0,58040.0,9e-07]
[1725204671188,2.12058862,58041.0,58040.0,0.0009007]
[1725204671407,2.14763628,58041.0,58040.0,0.0009007]
[1725204671635,2.14763628,58041.0,58040.0,0.0008998]
[1725204671636,4.57505628,58041.0,58040.0,0.0008998]
[1725204672099,4.57805628,58041.0,58040.0,0.0018998]
[1725204672308,4.66729575,58041.0,58040.0,0.0018998]
[1725204672518,5.02877493,58041.0,58040.0,0.0018998]
[1725204673352,5.21057493,58041.0,58040.0,0.0018998]
[1725204673594,5.17329168,58041.0,58040.0,0.0018998]
[1725204675301,4.99149168,58041.0,58040.0,0.0018998]
[1725204676417,4.99149168,58041.0,58040.0,8e-07]
[1725204676418,5.17329168,58041.0,58040.0,8e-07]
[1725204676628,2.73687168,58041.0,58040.0,8e-07]
[1725204677102,2.55507168,58041.0,58040.0,8e-07]
[1725204677528,2.55507168,58041.0,58031.0,0.0013009]
[1725204677529,1.651566,58032.0,58031.0,0.0013009]
[1725204677754,4.37069498,58032.0,58031.0,0.0013009]
[1725204678197,4.38873375,58032.0,58031.0,0.0013009]
[1725204678408,4.47263445,58032.0,58031.0,0.0013009]
[1725204678651,4.60091999,58032.0,58031.0,0.0013009]
[1725204678862,5.01307711,58032.0,58031.0,0.0013009]
[1725204679292,4.88479157,58032.0,58031.0,0.0013009]
[1725204679751,4.89179157,58032.0,58031.0,0.0013009]
[1725204679972,4.89179157,58032.0,58015.0,0.008998]
[1725204679973,1.600094,58016.0,58015.0,0.008998]
[1725204680198,2.20453498,58016.0,58015.0,0.008998]
[1725204680447,2.46564365,58016.0,58015.0,0.008998]
[1725204680717,4.85956042,58016.0,58015.0,0.008998]
[1725204681344,4.44304662,58016.0,58015.0,0.008998]
[1725204682251,4.09831462,58016.0,58015.0,0.008998]
[1725204682697,4.12536812,58016.0,58015.0,0.008998]
[1725204682908,4.13936812,58016.0,58015.0,0.008998]
[1725204683138,4.12536812,58016.0,58015.0,0.008998]
[1725204683996,4.13936812,58016.0,58015.0,0.008998]
[1725204684482,3.2100475,58016.0,58015.0,0.008998]
[1725204684703,3.36975648,58016.0,58015.0,0.008998]
[1725204685166,1.556402,58012.0,58011.0,0.0004]
[1725204685401,2.18386698,58012.0,58011.0,0.0004]
[1725204685614,2.18386698,58012.0,58003.0,0.0828]
[1725204685615,1.551613,58004.0,58003.0,0.0828]
[1725204685837,1.651613,58004.0,58003.0,0.0828]
[1725204686066,3.954669,58004.0,58003.0,0.0828]
[1725204686300,3.954669,58004.0,57993.0,0.002]
[1725204686301,1.206999,57995.0,57993.0,0.0623]
[1725204686537,1.3276989,57995.0,57993.0,0.0623]
[1725204686750,1.4276989,57995.0,57993.0,0.0623]
[1725204688451,1.6495179,57995.0,57993.0,0.0623]
[1725204688665,1.6765778,57995.0,57993.0,0.0623]
[1725204689162,1.6765778,57995.0,57951.0,0.0004]
[1725204689163,0.005,57952.0,57951.0,0.0004]
[1725204689408,1.212895,57952.0,57951.0,0.0627]
[1725204689650,1.820292,57952.0,57951.0,0.0004]
[1725204689889,1.920292,57952.0,57951.0,0.0004]
[1725204690117,1.97844382,57952.0,57951.0,0.0004]
[1725204690338,1.912292,57952.0,57951.0,0.0004]
[1725204690559,1.912292,57952.0,57939.0,0.7948]
[1725204690560,1.224916,57951.0,57950.0,0.33027]
[1725204690781,0.517803,57937.0,57936.0,0.008998]
[1725204690996,0.272601,57937.0,57936.0,0.008998]
[1725204691494,0.1,57937.0,57936.0,0.008998]
[1725204692142,0.17259,57941.0,57936.0,0.008998]
[1725204692381,0.1,57940.0,57936.0,0.16870698]
[1725204692587,0.1,57946.0,57936.0,0.16870698]
[1725204692802,0.0445144,57945.0,57936.0,0.16870698]
[1725204693016,0.172589,57941.0,57936.0,0.16870698]
[1725204693238,0.1,57946.0,57936.0,0.16870698]
[1725204693239,0.11865852,57946.0,57940.0,0.15970898]
[1725204693455,0.01,57960.0,57940.0,0.15970898]
[1725204693456,0.172566,57949.0,57946.0,0.0804]
[1725204693669,0.005,57960.0,57946.0,0.0804]
[1725204693670,0.345099,57955.0,57946.0,0.0804]
[1725204693883,0.17256,57951.0,57946.0,0.0804]
[1725204694112,0.172562,57950.0,57946.0,0.0704]
[1725204694362,0.172571,57947.0,57946.0,0.0704]
[1725204695030,0.517713,57947.0,57946.0,0.0704]
[1725204695246,0.73747567,57947.0,57946.0,0.0704]
[1725204695465,1.08261767,57947.0,57946.0,0.0704]
[1725204695910,1.08261767,57947.0,57946.0,0.0714]
[1725204696132,0.1,57947.0,57946.0,0.23010898]
[1725204696352,0.1,57951.0,57946.0,0.23010898]
[1725204696562,0.004,57947.0,57946.0,0.23010898]
[1725204696778,0.104,57947.0,57946.0,0.23010898]
[1725204697219,0.104,57947.0,57946.0,0.46388298]
[1725204697432,0.06181034,57952.0,57947.0,0.17257]
[1725204697656,0.06181034,57952.0,57946.0,0.29230898]
[1725204697657,0.008,57951.0,57946.0,0.29230898]
[1725204698083,0.008,57951.0,57947.0,0.17257]
[1725204698300,0.02707982,57950.0,57946.0,0.1326]
[1725204698511,0.02707982,57950.0,57949.0,0.33227398]
[1725204698943,0.02707982,57950.0,57949.0,0.75780498]
[1725204699152,0.02707982,57950.0,57949.0,0.40867398]
[1725204699576,0.02707982,57950.0,57949.0,0.75380498]
[1725204699870,0.02807982,57950.0,57949.0,0.75980498]
[1725204701164,0.02807982,57950.0,57949.0,0.24610898]
[1725204701391,0.02807982,57950.0,57949.0,0.0864]
[1725204701392,0.65135295,57950.0,57949.0,0.0864]
[1725204701600,0.99647795,57950.0,57949.0,0.0864]
[1725204702221,1.06939813,57950.0,57949.0,0.0864]
[1725204704068,1.06839813,57950.0,57949.0,0.0864]
[1725204704292,1.41352313,57950.0,57949.0,0.006]
[1725204704501,1.10416431,57950.0,57949.0,0.006]
[1725204704704,1.44928931,57950.0,57949.0,0.006]
[1725204705110,1.74238731,57950.0,57949.0,0.006]
[1725204705564,1.76946835,57950.0,57949.0,0.006]
[1725204706633,1.77230963,57950.0,57949.0,0.006]
[1725204707195,1.77312863,57950.0,57949.0,0.006]
[1725204707414,1.79612863,57950.0,57949.0,0.006]
[1725204707621,2.14625363,57950.0,57949.0,0.006]
[1725204707811,2.1475541,57950.0,57949.0,0.006]
[1725204708268,2.9475041,57950.0,57949.0,1e-06]